bitfinex/quotes_BTCUSD_20260125
["timestamp","ask_amount","ask_price","bid_price","bid_amount"]
[1769382167500,0.04628,86565.0,86523.0,0.01155762]
[1769382167501,0.04628,86565.0,86531.0,0.01155655]
[1769382167705,0.04628,86565.0,86527.0,0.01155708]
[1769382167918,0.04628,86565.0,86523.0,0.01155762]
[1769382168121,0.04628,86565.0,86521.0,0.01155788]
[1769382168122,0.01155494,86543.0,86529.0,0.05551058]
[1769382168340,0.04628,86565.0,86529.0,0.05551058]
[1769382168483,0.01155494,86543.0,86529.0,0.05551058]
[1769382168696,0.01155708,86527.0,86494.0,0.04628]
[1769382168900,0.020736,86564.0,86514.0,0.05551058]
[1769382168901,0.01155735,86525.0,86514.0,0.05551058]
[1769382169105,0.01155762,86523.0,86514.0,0.05551058]
[1769382169311,1.10746785,86549.0,86514.0,0.05551058]
[1769382169521,0.12304387,86646.0,86494.0,0.04628]
[1769382169522,0.020736,86548.0,86494.0,0.04628]
[1769382169888,0.020736,86544.0,86501.0,0.01156055]
[1769382170145,0.020736,86544.0,86502.0,0.01156042]
[1769382170384,0.01155802,86520.0,86500.0,0.01156069]
[1769382170637,0.01155748,86524.0,86497.0,0.01156109]
[1769382170638,0.01155548,86539.0,86520.0,0.01155802]
[1769382170863,0.01155494,86543.0,86523.0,0.05551058]
[1769382171122,0.01155428,86548.0,86527.0,0.01155708]
[1769382171309,0.01155428,86548.0,86526.0,0.01155721]
[1769382171550,0.01155428,86548.0,86530.0,0.01155668]
[1769382171551,0.00047136,86548.0,86530.0,0.01155668]
[1769382171767,0.00047136,86548.0,86531.0,0.01155655]
[1769382171983,0.00047136,86548.0,86525.0,0.01155735]
[1769382171984,0.00047136,86548.0,86537.0,0.01155575]
[1769382172206,0.00047136,86548.0,86536.0,0.01155588]
[1769382172477,0.00047136,86548.0,86496.0,0.46244836]
[1769382172478,0.01202564,86548.0,86527.0,0.01155708]
[1769382172688,0.01202564,86548.0,86465.0,0.05788384]
[1769382172689,0.01155628,86533.0,86510.0,0.01155935]
[1769382172893,0.00047136,86548.0,86480.0,1.53911176]
[1769382172894,0.01155561,86538.0,86518.0,0.01155828]
[1769382173133,0.01155535,86540.0,86518.0,0.01155828]
[1769382173134,0.01155535,86540.0,86519.0,0.01155815]
[1769382173348,0.00047136,86548.0,86515.0,0.01155868]
[1769382173349,0.0004,86571.0,86551.0,0.01155388]
[1769382173554,0.00054135,86571.0,86551.0,0.01155388]
[1769382173775,0.00054135,86571.0,86547.0,0.01155441]
[1769382174008,0.00054135,86571.0,86550.0,0.01155401]
[1769382174243,0.00054135,86571.0,86528.0,0.05551058]
[1769382174244,0.00054135,86571.0,86546.0,0.01155454]
[1769382174496,0.00054135,86571.0,86550.0,0.01155401]
[1769382174981,0.00054135,86571.0,86556.0,0.01155321]
[1769382175197,0.01155161,86568.0,86548.0,0.01155428]
[1769382175402,0.00054135,86571.0,86552.0,0.01155374]
[1769382175611,0.00054135,86571.0,86557.0,0.01155308]
[1769382175820,0.00054135,86571.0,86555.0,0.01155334]
[1769382176043,0.00054135,86571.0,86553.0,0.01155361]
[1769382176247,0.00054135,86571.0,86555.0,0.01155334]
[1769382176501,0.00054135,86571.0,86550.0,0.01155401]
[1769382176695,0.00054135,86571.0,86551.0,0.01155388]
[1769382176927,0.01155187,86566.0,86544.0,0.01155481]
[1769382177117,0.00054135,86571.0,86533.0,0.01155628]
[1769382177118,0.01155308,86557.0,86533.0,0.01155628]
[1769382177323,0.01155308,86557.0,86500.0,0.48190785]
[1769382177324,0.01155214,86564.0,86542.0,0.01155508]
[1769382177553,0.01155161,86568.0,86529.0,0.11769672]
[1769382177554,0.01155161,86568.0,86548.0,0.01155428]
[1769382177778,0.00054135,86571.0,86551.0,0.01155388]
[1769382177990,0.00054135,86571.0,86555.0,0.01155334]
[1769382178256,1.07057027,86584.0,86544.0,0.01155481]
[1769382178453,1.07057027,86584.0,86544.0,0.00014135]
[1769382178860,0.01155348,86554.0,86544.0,0.00014135]
[1769382179079,0.01155414,86549.0,86544.0,0.00014135]
[1769382179276,0.12496651,86579.0,86393.0,0.1482]
[1769382179277,0.01155401,86550.0,86524.0,0.01155748]
[1769382179490,0.01155401,86550.0,86512.0,0.11769672]
[1769382179491,0.01155508,86542.0,86516.0,0.01155855]
[1769382179698,1.10746785,86545.0,86512.0,0.01155909]
[1769382179902,1.10746785,86545.0,86499.0,0.11769672]
[1769382179903,0.01155615,86534.0,86510.0,0.01155935]
[1769382180121,0.05778014,86535.0,86499.0,0.11769672]
[1769382180122,0.01155601,86535.0,86515.0,0.01155868]
[1769382180346,1.10746785,86545.0,86470.0,0.19677055]
[1769382180347,0.01155962,86508.0,86477.0,0.11769672]
[1769382180558,0.01155962,86508.0,86466.0,0.04371798]
[1769382180559,0.05551058,86544.0,86486.0,0.01156256]
[1769382180560,0.01155855,86516.0,86486.0,0.01156256]
[1769382180781,0.01155788,86521.0,86497.0,0.01156109]
[1769382180988,0.01155842,86517.0,86495.0,0.01156136]
[1769382181192,0.04624,86530.0,86487.0,0.05551058]
[1769382181193,0.01155708,86527.0,86487.0,0.05551058]
[1769382181407,0.01155695,86528.0,86503.0,0.01156029]
[1769382181616,0.05551058,86542.0,86487.0,0.05551058]
[1769382181617,0.00014114,86527.0,86520.0,0.01155802]
[1769382181834,0.34655059,86568.0,86487.0,0.05551058]
[1769382181835,0.01155361,86553.0,86529.0,0.01155681]
[1769382182054,0.01155361,86553.0,86528.0,0.01155695]
[1769382182055,0.01155414,86549.0,86528.0,0.01155695]
[1769382182266,0.01155441,86547.0,86528.0,0.01155695]
[1769382182438,0.01155428,86548.0,86528.0,0.01155695]
[1769382182648,0.0001413,86553.0,86534.0,0.01155615]
[1769382182850,0.0001413,86553.0,86538.0,0.01155561]
[1769382183054,0.02115768,86560.0,86539.0,0.01155548]
[1769382183257,0.04624,86570.0,86539.0,0.00047136]
[1769382183486,1.143537,86569.0,86539.0,0.00047136]
[1769382184259,0.01155428,86548.0,86539.0,0.00047136]
[1769382184470,0.01155468,86545.0,86488.0,0.4624878]
[1769382184697,0.01155468,86545.0,86505.0,0.01156002]
[1769382184698,0.01155708,86527.0,86505.0,0.01156002]
[1769382184912,0.23112011,86536.0,86482.0,0.13024183]
[1769382184913,0.01155882,86514.0,86489.0,0.01156216]
[1769382185116,0.13510345,86542.0,86488.0,0.05551058]
[1769382185117,0.17752,86558.0,86524.0,0.01155748]
[1769382185329,0.09059587,86566.0,86502.0,0.05551058]
[1769382185330,0.01155374,86552.0,86533.0,0.01155628]
[1769382185562,0.01155374,86552.0,86532.0,0.01155641]
[1769382185779,0.01155535,86540.0,86515.0,0.01155868]
[1769382185981,0.00047089,86540.0,86522.0,0.01155775]
[1769382186228,0.00047089,86540.0,86525.0,0.01155735]
[1769382186399,0.00047089,86540.0,86526.0,0.01155721]
[1769382186602,0.00047089,86540.0,86523.0,0.01155762]
[1769382186967,0.00047089,86540.0,86525.0,0.01155735]
[1769382187174,0.00047089,86540.0,86526.0,0.01155721]
[1769382187376,0.00047089,86540.0,86524.0,0.01155748]
[1769382187732,0.00047089,86540.0,86523.0,0.01155762]
[1769382187945,0.00047089,86540.0,86533.0,0.01155628]
[1769382188154,0.00047089,86540.0,86534.0,0.01155615]
[1769382188878,0.00047089,86540.0,86531.0,0.01155655]
[1769382188879,0.00047089,86540.0,86533.0,0.01155628]
[1769382189082,0.020736,86579.0,86537.0,0.01155575]
[1769382189323,0.01155281,86559.0,86539.0,0.01155548]
[1769382189663,0.01155281,86559.0,86538.0,0.01155561]
[1769382190157,0.01155281,86559.0,86537.0,0.01169705]
[1769382190325,0.01155281,86559.0,86538.0,0.01155561]
[1769382190729,0.01155281,86559.0,86537.0,0.01169705]
[1769382190730,0.04624,86564.0,86537.0,0.0001413]
[1769382191671,0.04624,86564.0,86537.0,0.01169705]
[1769382191825,0.01155321,86556.0,86537.0,0.0001413]
[1769382192026,0.01155361,86553.0,86537.0,0.0001413]
[1769382192230,0.01155494,86543.0,86537.0,0.0001413]
[1769382192462,0.34233626,86579.0,86514.0,0.23117618]
[1769382192463,0.01155615,86534.0,86514.0,0.01155882]
[1769382192678,0.01155535,86540.0,86520.0,0.01155802]
[1769382192878,1.143537,86549.0,86517.0,0.01155842]
[1769382193094,1.143537,86549.0,86514.0,0.00047089]
[1769382193290,0.04624,86553.0,86514.0,0.00047089]
[1769382193291,0.05551058,86547.0,86514.0,0.00047089]
[1769382193503,0.13510345,86545.0,86514.0,0.00047089]
[1769382193865,0.01155655,86531.0,86514.0,0.00047089]
[1769382194073,0.01155655,86531.0,86506.0,0.01155989]
[1769382194074,0.01155655,86531.0,86476.0,0.0115639]
[1769382194075,0.01156069,86500.0,86476.0,0.0115639]
[1769382194277,0.00047069,86500.0,86465.0,0.01156537]
[1769382194478,0.00047069,86500.0,86462.0,0.04624]
[1769382194479,0.01156323,86481.0,86462.0,0.04624]
[1769382194704,1.143537,86498.0,86466.0,0.01156523]
[1769382194705,0.01156256,86486.0,86466.0,0.01156523]
[1769382194883,0.01156269,86485.0,86466.0,0.01156523]
[1769382195083,0.01156269,86485.0,86463.0,0.06939353]
[1769382195084,0.01156243,86487.0,86463.0,0.01156564]
[1769382195286,0.01156243,86487.0,86449.0,0.23134771]
[1769382195287,0.24700414,86536.0,86450.0,0.01156737]
[1769382195288,0.13510345,86497.0,86450.0,0.01156737]
[1769382195487,0.13510345,86497.0,86416.0,0.05551058]
[1769382195488,0.09059587,86509.0,86430.0,0.04624]
[1769382195489,0.05551058,86479.0,86430.0,0.04624]
[1769382195703,0.05551058,86479.0,86416.0,0.18575241]
[1769382195704,0.05551058,86479.0,86419.0,0.01157152]
[1769382195705,0.09059587,86472.0,86419.0,0.01157152]
[1769382195898,0.11491197,86471.0,86427.0,0.01157045]
[1769382196100,0.11491197,86471.0,86416.0,0.05551058]
[1769382196101,0.01156684,86454.0,86435.0,0.01156938]
[1769382196484,0.0115639,86476.0,86456.0,0.01156657]
[1769382196723,1.09163292,86487.0,86444.0,0.11102758]
[1769382196724,0.01156203,86490.0,86444.0,0.11102758]
[1769382196931,0.01203272,86490.0,86457.0,0.11102758]
[1769382197144,0.00047069,86490.0,86457.0,0.11102758]
[1769382197381,1.31584753,86522.0,86489.0,0.01156216]
[1769382197596,1.22525166,86522.0,86499.0,0.01156082]
[1769382197827,0.09059587,86536.0,86503.0,0.01156029]
[1769382198060,0.1609172,86535.0,86501.0,0.01156055]
[1769382198284,0.01155815,86519.0,86499.0,0.01156082]
[1769382198714,0.01155842,86517.0,86496.0,0.01156122]
[1769382198923,0.01155775,86522.0,86498.0,0.01156096]
[1769382199146,0.05779262,86517.0,86493.0,0.01156162]
[1769382199362,0.01155868,86515.0,86496.0,0.01156122]
[1769382199572,0.23113136,86531.0,86496.0,0.01156122]
[1769382199763,0.11465358,86530.0,86502.0,0.01156042]
[1769382199981,0.13361874,86533.0,86485.0,0.01156269]
[1769382200193,0.13361874,86525.0,86484.0,0.01156283]
[1769382200404,0.01155922,86511.0,86491.0,0.01156189]
[1769382200824,0.01155989,86506.0,86489.0,0.00014114]
[1769382201034,0.01155962,86508.0,86489.0,0.00014114]
[1769382201270,0.01155895,86513.0,86493.0,0.01156162]
[1769382201476,0.01155868,86515.0,86495.0,0.01156136]
[1769382201685,0.01155815,86519.0,86498.0,0.01156096]
[1769382202120,0.020736,86534.0,86500.0,0.01156069]
[1769382202322,0.020736,86532.0,86496.0,0.01156122]
[1769382202529,0.01155842,86517.0,86498.0,0.01156096]
[1769382202740,0.020736,86532.0,86501.0,0.01156055]
[1769382202741,0.01155762,86523.0,86501.0,0.01156055]
[1769382202969,0.01155708,86527.0,86506.0,0.01155989]
[1769382203200,0.01155735,86525.0,86504.0,0.01156015]
[1769382203407,0.01155775,86522.0,86501.0,0.05780263]
[1769382203669,0.01155802,86520.0,86496.0,0.01156122]
[1769382203877,0.01155802,86520.0,86492.0,0.01156176]
[1769382203878,0.13361874,86530.0,86490.0,0.01156203]
[1769382204100,0.04624,86532.0,86471.0,0.01156457]
[1769382204101,0.13361874,86520.0,86471.0,0.01156457]
[1769382204315,0.13361874,86518.0,86481.0,0.01156323]
[1769382204527,0.13361874,86518.0,86482.0,0.01156309]
[1769382204746,0.01155949,86509.0,86489.0,0.01156216]
[1769382204966,0.01155949,86509.0,86481.0,0.00047069]
[1769382205178,0.01155989,86506.0,86482.0,0.01156309]
[1769382205391,0.01156136,86495.0,86481.0,0.00047069]
[1769382205605,0.13361874,86517.0,86481.0,0.00047069]
[1769382205826,0.020736,86540.0,86481.0,0.00047069]
[1769382205827,0.020736,86540.0,86521.0,0.01155788]
[1769382206041,1.09163292,86561.0,86499.0,1.10247668]
[1769382206042,0.00110614,86521.0,86514.0,0.01155882]
[1769382206255,0.10172427,86567.0,86514.0,0.01155882]
[1769382206256,1.09163292,86556.0,86515.0,0.01155868]
[1769382206463,0.10172427,86567.0,86480.0,0.48190785]
[1769382206464,0.18910301,86543.0,86507.0,0.01155975]
[1769382206678,1.09163292,86554.0,86491.0,0.34684887]
[1769382206894,1.09163292,86554.0,86463.0,0.06241459]
[1769382206895,1.09163292,86554.0,86522.0,0.01155775]
[1769382207108,0.01155508,86542.0,86523.0,0.01155762]
[1769382207319,0.01155508,86542.0,86522.0,0.01155775]
[1769382207572,0.01155521,86541.0,86518.0,0.01155828]
[1769382207788,0.01155975,86507.0,86484.0,0.01156283]
[1769382208017,0.01155962,86508.0,86488.0,0.01156229]
[1769382208221,0.01155922,86511.0,86491.0,0.01156189]
[1769382208433,0.01155895,86513.0,86492.0,0.01156176]
[1769382208646,0.01155895,86513.0,86486.0,0.01156256]
[1769382208647,0.01156015,86504.0,86481.0,0.01156323]
[1769382208881,0.01155935,86510.0,86488.0,0.01156229]
[1769382209107,0.05548427,86506.0,86465.0,0.01156537]
[1769382209340,0.05548427,86506.0,86446.0,1.10247668]
[1769382209341,0.00047078,86506.0,86472.0,0.06938637]
[1769382209554,0.00047078,86506.0,86468.0,0.04624]
[1769382209555,0.05595505,86506.0,86468.0,0.04624]
[1769382209770,0.00047078,86506.0,86468.0,0.04624]
[1769382209988,0.00047078,86506.0,86477.0,0.01156376]
[1769382210221,0.00047078,86506.0,86468.0,0.04624]
[1769382210222,0.01156256,86486.0,86468.0,0.04624]
[1769382210432,0.05548427,86505.0,86469.0,0.01156483]
[1769382210433,0.01156216,86489.0,86469.0,0.01156483]
[1769382210875,0.01156256,86486.0,86468.0,0.04624]
[1769382211095,0.01156229,86488.0,86468.0,0.04624]
[1769382211311,0.13361874,86500.0,86468.0,0.04624]
[1769382211545,0.13361874,86500.0,86415.0,1.1571943]
[1769382211546,0.05548427,86525.0,86449.0,0.01156751]
[1769382211547,0.05548427,86491.0,86449.0,0.01156751]
[1769382211761,0.8642529,86520.0,86460.0,0.01156604]
[1769382211762,0.13361874,86497.0,86460.0,0.01156604]
[1769382211981,0.13361874,86497.0,86457.0,0.01156644]
[1769382212204,0.13361874,86497.0,86455.0,0.01156671]
[1769382212205,0.01156443,86472.0,86450.0,0.01156737]
[1769382212414,0.01156443,86472.0,86439.0,0.17480487]
[1769382212415,0.0115655,86464.0,86442.0,0.01156845]
[1769382212625,0.0115651,86467.0,86446.0,0.01156791]
[1769382212837,0.13361874,86486.0,86439.0,0.04624]
[1769382212838,0.01156336,86480.0,86464.0,0.01]
[1769382213049,0.01156323,86481.0,86464.0,0.01]
[1769382213275,0.30055789,86506.0,86464.0,0.01]
[1769382213276,0.020736,86499.0,86464.0,0.01]
[1769382213498,0.00047049,86481.0,86464.0,0.004]
[1769382213714,0.00047049,86481.0,86439.0,0.17480487]
[1769382213715,0.00047049,86481.0,86439.0,0.04624]
[1769382213716,0.14203429,86474.0,86439.0,0.04624]
[1769382213925,0.05548427,86477.0,86439.0,0.04624]
[1769382213926,1.23095407,86472.0,86439.0,0.04624]
[1769382214181,0.05548427,86464.0,86439.0,0.04624]
[1769382214399,0.0384,86484.0,86439.0,0.04624]
[1769382214633,1.47936603,86524.0,86439.0,0.04624]
[1769382214634,0.01155949,86509.0,86487.0,0.01156243]
[1769382214860,0.01156189,86491.0,86463.0,0.13742415]
[1769382215081,0.01156564,86463.0,86440.0,0.04624]
[1769382215293,0.01156564,86463.0,86425.0,0.13742415]
[1769382215294,0.01,86487.0,86426.0,0.01157059]
[1769382215295,0.01156778,86447.0,86426.0,0.01157059]
[1769382215521,0.05548427,86475.0,86411.0,0.13742415]
[1769382215522,0.01156804,86445.0,86416.0,0.01157193]
[1769382215737,0.0578377,86449.0,86427.0,0.01157045]
[1769382215970,0.0601316,86472.0,86413.0,0.23184654]
[1769382215971,0.01156644,86457.0,86430.0,0.01157005]
[1769382216191,0.0601316,86472.0,86422.0,0.01157112]
[1769382216192,0.01156791,86446.0,86422.0,0.01157112]
[1769382216409,0.01156871,86440.0,86419.0,0.01157152]
[1769382216626,0.01156858,86441.0,86416.0,0.00047049]
[1769382216848,0.0601316,86456.0,86416.0,0.00047049]
[1769382217062,0.0601316,86443.0,86416.0,0.00047049]
[1769382217276,0.14203429,86455.0,86418.0,0.01157166]
[1769382217498,0.0601316,86443.0,86416.0,0.01204242]
[1769382217715,0.01156831,86443.0,86424.0,0.01157085]
[1769382217936,0.01156778,86447.0,86427.0,0.01157045]
[1769382218152,0.01156697,86453.0,86419.0,0.23142802]
[1769382218153,0.01156831,86443.0,86421.0,0.01157126]
[1769382218363,0.01156737,86450.0,86426.0,0.01157059]
[1769382218601,0.01156778,86447.0,86426.0,0.01157059]
[1769382218831,0.01156778,86447.0,86289.0,0.0004]
[1769382218832,0.01156764,86448.0,86398.0,0.01157434]
[1769382218833,0.01,86426.0,86398.0,0.01157434]
[1769382219056,0.01,86426.0,86413.0,0.00014143]
[1769382219309,0.01,86426.0,86389.0,0.13742415]
[1769382219310,0.01,86426.0,86397.0,0.01157447]
[1769382219526,0.01,86426.0,86401.0,0.01157394]
[1769382219753,0.01,86426.0,86406.0,0.01157327]
[1769382219754,0.01157085,86424.0,86406.0,0.01157327]
[1769382219976,0.01157085,86424.0,86404.0,0.01157353]
[1769382219977,0.01,86426.0,86396.0,0.0115746]
[1769382220198,0.01,86426.0,86330.0,0.05729217]
[1769382220199,0.01,86426.0,86392.0,0.01157514]
[1769382220200,0.01157219,86414.0,86392.0,0.01157514]
[1769382220419,0.01157233,86413.0,86394.0,0.01157487]
[1769382220644,0.01157219,86414.0,86394.0,0.01157487]
[1769382220645,0.01157219,86414.0,86396.0,0.0115746]
[1769382220856,0.01157246,86412.0,86392.0,0.01157514]
[1769382221076,0.01157206,86415.0,86392.0,0.0694505]
[1769382221306,0.05783092,86459.0,86398.0,1.16508084]
[1769382221534,0.17214471,86486.0,86390.0,0.64188306]
[1769382221535,0.53451894,86483.0,86439.0,0.01156885]
[1769382221765,0.06939881,86457.0,86433.0,0.01156965]
[1769382221991,0.06939881,86457.0,86416.0,0.13742415]
[1769382221992,0.01156858,86441.0,86416.0,0.13742415]
[1769382222215,0.01156858,86441.0,86372.0,0.2355569]
[1769382222216,0.01,86433.0,86409.0,0.01157286]
[1769382222463,0.01,86433.0,86399.0,0.13742415]
[1769382222465,0.01,86433.0,86407.0,0.01157313]
[1769382222466,0.02156965,86433.0,86407.0,0.01157313]
[1769382222696,0.02156965,86433.0,86407.0,0.00014149]
[1769382222697,0.01157099,86423.0,86407.0,0.00014149]
[1769382222934,0.01157059,86426.0,86389.0,0.0010242]
[1769382222935,0.01157327,86406.0,86389.0,0.0010242]
[1769382223185,0.01157219,86414.0,86391.0,0.01157527]
[1769382223400,1.15372559,86440.0,86389.0,0.00116574]
[1769382223401,0.01157166,86418.0,86399.0,0.0115742]
[1769382223622,0.01157166,86418.0,86389.0,0.00116574]
[1769382223623,0.01157407,86400.0,86389.0,0.00116574]
[1769382223847,0.01157327,86406.0,86389.0,0.00116574]
[1769382224052,0.01157273,86410.0,86390.0,0.01157541]
[1769382224266,0.01157166,86418.0,86394.0,0.01157487]
[1769382224496,0.01157099,86423.0,86400.0,0.01157407]
[1769382224711,0.01157099,86423.0,86395.0,0.01157474]
[1769382224712,0.01157193,86416.0,86396.0,0.0115746]
[1769382224927,0.23141457,86425.0,86389.0,0.00116574]
[1769382224928,0.01157005,86430.0,86411.0,0.0115726]
[1769382225149,0.01157005,86430.0,86399.0,0.13742415]
[1769382225150,0.01156885,86439.0,86421.0,0.01157126]
[1769382225374,0.01156764,86448.0,86415.0,0.01157206]
[1769382225376,0.01156416,86474.0,86425.0,0.13742415]
[1769382225588,0.01156671,86455.0,86434.0,0.01156952]
[1769382225801,0.01156617,86459.0,86434.0,0.01156952]
[1769382225802,0.01156617,86459.0,86436.0,0.06941551]
[1769382226023,0.0115663,86458.0,86439.0,0.01156885]
[1769382226265,0.01156671,86455.0,86435.0,0.01156938]
[1769382226486,0.01156751,86449.0,86426.0,0.13742415]
[1769382226702,0.00047066,86458.0,86382.0,1.15763986]
[1769382226703,0.01156992,86431.0,86408.0,0.011573]
[1769382226916,0.01156938,86435.0,86409.0,0.01157286]
[1769382227142,0.04628,86457.0,86429.0,0.01157019]
[1769382227143,0.01156751,86449.0,86429.0,0.01157019]
[1769382227362,0.01156885,86439.0,86416.0,0.13742415]
[1769382227596,0.01156938,86435.0,86410.0,0.01157273]
[1769382227819,0.01156898,86438.0,86419.0,0.01157152]
[1769382228022,0.01156898,86438.0,86390.0,0.64188306]
[1769382228023,0.00014107,86435.0,86414.0,0.05786089]
[1769382228252,0.00014107,86435.0,86411.0,0.06943543]
[1769382228253,0.23134556,86451.0,86411.0,0.06943543]
[1769382228254,0.06480581,86471.0,86411.0,1.16508084]
[1769382228506,0.06527755,86471.0,86441.0,0.01156858]
[1769382228713,0.06527755,86471.0,86422.0,0.13742415]
[1769382228714,0.06480581,86470.0,86436.0,0.01156925]
[1769382228947,0.01,86441.0,86423.0,0.01157099]
[1769382229166,0.01,86441.0,86425.0,0.01157072]
[1769382229379,0.01,86441.0,86432.0,0.01156978]
[1769382229593,0.01156644,86457.0,86435.0,0.01156938]
[1769382229841,0.01156644,86457.0,86438.0,0.01156898]
[1769382230061,0.01156697,86453.0,86432.0,0.01156978]
[1769382230282,0.07637238,86456.0,86428.0,0.01157032]
[1769382230283,0.01156737,86450.0,86428.0,0.01157032]
[1769382230504,0.06480581,86456.0,86427.0,0.01157045]
[1769382230505,0.01156764,86448.0,86427.0,0.01157045]
[1769382230936,0.06480581,86456.0,86425.0,0.01157072]
[1769382231602,0.06480581,86456.0,86417.0,0.24300725]
[1769382231603,0.01156978,86432.0,86413.0,0.01157233]
[1769382231830,0.01156858,86441.0,86418.0,0.01157166]
[1769382232045,0.06480581,86456.0,86402.0,1.30250499]
[1769382232046,0.06480581,86440.0,86410.0,0.01157273]
[1769382232266,0.26906038,86450.0,86402.0,0.13742415]
[1769382232267,0.06942444,86425.0,86402.0,0.13742415]
[1769382232494,0.01157059,86426.0,86407.0,0.01157313]
[1769382232724,0.01156992,86431.0,86410.0,0.01157273]
[1769382232964,0.01156978,86432.0,86413.0,0.01157233]
[1769382233188,0.01156992,86431.0,86411.0,0.0115726]
[1769382233420,0.01156952,86434.0,86416.0,0.01157193]
[1769382233643,0.01156885,86439.0,86411.0,0.01171367]
[1769382233644,0.01156778,86447.0,86424.0,0.01157085]
[1769382233868,0.01156885,86439.0,86420.0,0.01157139]
[1769382234113,0.01156925,86436.0,86415.0,0.06943235]
[1769382234336,0.01156898,86438.0,86418.0,0.01157166]
[1769382234570,0.01156871,86440.0,86417.0,0.01157179]
[1769382234791,0.01156911,86437.0,86419.0,0.01157152]
[1769382235073,0.01156898,86438.0,86419.0,0.01157152]
[1769382235300,0.4614459,86475.0,86267.0,0.21300581]
[1769382235301,0.01157059,86426.0,86385.0,1.16508084]
[1769382235539,0.01157139,86420.0,86401.0,0.01157394]
[1769382235754,0.01157005,86430.0,86406.0,0.01157327]
[1769382235975,0.01157032,86428.0,86406.0,0.01157327]
[1769382236218,0.05784017,86446.0,86430.0,0.01]
[1769382236445,0.63455128,86470.0,86430.0,0.01]
[1769382236446,0.01156885,86439.0,86430.0,0.01]
[1769382236676,0.01156898,86438.0,86418.0,0.01157166]
[1769382236891,0.01156885,86439.0,86420.0,0.01157139]
[1769382237099,0.01156804,86445.0,86411.0,0.00014107]
[1769382237316,0.63308852,86486.0,86429.0,0.01157019]
[1769382237317,0.01156751,86449.0,86429.0,0.01157019]
[1769382237534,0.01156898,86438.0,86416.0,0.01157193]
[1769382237680,0.23134597,86451.0,86412.0,0.13742415]
[1769382237681,0.01156952,86434.0,86414.0,0.01157219]
[1769382237902,0.01157005,86430.0,86411.0,0.00014107]
[1769382238277,0.06480581,86455.0,86417.0,0.01157179]
[1769382238488,0.01157005,86430.0,86411.0,0.00014107]
[1769382238690,0.01156898,86438.0,86413.0,0.01157233]
[1769382238863,0.01156965,86433.0,86414.0,0.01157219]
[1769382239089,0.01156952,86434.0,86415.0,0.01157206]
[1769382239289,0.01156978,86432.0,86413.0,0.01157233]
[1769382239510,0.01156952,86434.0,86415.0,0.01157206]
[1769382239860,0.01156952,86434.0,86411.0,0.01171367]
[1769382239861,0.01156978,86432.0,86411.0,0.00014107]
[1769382240087,0.06942007,86431.0,86411.0,0.00014107]
[1769382240286,0.01157045,86427.0,86411.0,0.00014107]
[1769382240564,0.01157099,86423.0,86411.0,0.00014107]
[1769382240740,0.01157126,86421.0,86411.0,0.00014107]
[1769382240973,0.01157112,86422.0,86411.0,0.00014107]
[1769382241191,0.01157059,86426.0,86411.0,0.00014107]
[1769382241405,2.41623253,86491.0,86424.0,0.01]
[1769382241406,0.01156778,86447.0,86424.0,0.01]
[1769382241618,0.17214471,86461.0,86424.0,0.01]
[1769382241619,0.11512194,86446.0,86430.0,0.43840498]
[1769382241845,0.11512194,86446.0,86424.0,0.00585869]
[1769382241846,0.11512194,86445.0,86424.0,0.00585869]
[1769382242057,0.11512194,86444.0,86430.0,0.43840498]
[1769382242263,0.13813662,86461.0,86430.0,0.43840498]
[1769382242264,0.10366005,86460.0,86437.0,0.01156911]
[1769382242499,0.11517159,86459.0,86440.0,0.43840498]
[1769382242681,0.11517159,86459.0,86437.0,0.13742415]
[1769382242682,0.01156497,86468.0,86450.0,0.43840498]
[1769382242948,0.11515902,86467.0,86450.0,0.43840498]
[1769382243160,0.09209401,86478.0,86450.0,0.43840498]
[1769382243161,0.01156537,86465.0,86450.0,0.43840498]
[1769382243373,0.0115655,86464.0,86450.0,0.43840498]
[1769382243585,0.01156537,86465.0,86450.0,0.44997235]
[1769382243586,0.00047145,86465.0,86450.0,0.44997235]
[1769382243799,0.0115647,86470.0,86450.0,0.44997235]
[1769382244023,0.0115647,86470.0,86437.0,0.13742415]
[1769382244024,0.00014138,86470.0,86460.0,0.43840498]
[1769382244237,0.06480581,86514.0,86473.0,0.0115643]
[1769382244238,0.09209401,86491.0,86473.0,0.0115643]
[1769382244475,0.12667606,86490.0,86471.0,0.01156457]
[1769382244730,0.12667606,86490.0,86470.0,0.00573538]
[1769382244731,0.01156229,86488.0,86470.0,0.00573538]
[1769382244945,0.53049899,86500.0,86470.0,0.00573538]
[1769382244946,0.01156082,86499.0,86475.0,0.01156403]
[1769382245197,0.00014132,86499.0,86479.0,0.0115635]
[1769382245410,0.00014132,86499.0,86488.0,0.01156229]
[1769382245627,0.00014132,86499.0,86480.0,0.43840498]
[1769382245628,0.00014132,86499.0,86480.0,0.01156336]
[1769382245837,0.00014132,86499.0,86470.0,0.43840498]
[1769382245838,0.00014132,86499.0,86484.0,0.01156283]
[1769382246052,0.01156002,86505.0,86484.0,0.01156283]
[1769382246263,0.01156042,86502.0,86484.0,0.00014132]
[1769382246446,0.01155975,86507.0,86484.0,0.00014132]
[1769382246701,0.01156042,86502.0,86484.0,0.00014132]
[1769382246916,0.09209401,86525.0,86484.0,0.00014132]
[1769382246917,0.01155949,86509.0,86484.0,0.01170415]
[1769382247136,0.17267078,86539.0,86484.0,0.01170415]
[1769382247137,0.01155842,86517.0,86497.0,0.01156109]
[1769382247351,0.06480581,86528.0,86486.0,1.14076876]
[1769382247352,0.01155922,86511.0,86493.0,0.01156162]
[1769382247569,0.01155895,86513.0,86493.0,0.01156162]
[1769382247787,0.01155882,86514.0,86492.0,0.01156176]
[1769382247788,0.01155909,86512.0,86492.0,0.01156176]
[1769382248002,0.09209401,86538.0,86364.0,0.86242159]
[1769382248003,0.06480581,86527.0,86493.0,0.01156162]
[1769382248217,0.06480581,86527.0,86370.0,1.73579476]
[1769382248219,0.01155641,86532.0,86507.0,0.01155975]
[1769382248420,0.01155641,86532.0,86500.0,0.43840498]
[1769382248421,0.01155762,86523.0,86500.0,0.01156069]
[1769382248631,0.23111419,86538.0,86516.0,0.01155855]
[1769382248632,0.01155561,86538.0,86516.0,0.01155855]
[1769382248851,0.01155588,86536.0,86513.0,0.01155895]
[1769382249083,0.01155641,86532.0,86512.0,0.01155909]
[1769382249308,0.43840498,86540.0,86498.0,1.14076876]
[1769382249309,0.01155762,86523.0,86503.0,0.20822808]
[1769382249523,0.01155708,86527.0,86506.0,0.01155989]
[1769382249737,0.01155788,86521.0,86503.0,0.20822808]
[1769382249953,0.60976702,86560.0,86479.0,0.04628]
[1769382249954,0.01155508,86542.0,86521.0,0.00573538]
[1769382250158,0.23107738,86552.0,86521.0,0.00573538]
[1769382250159,0.01155374,86552.0,86531.0,0.01155655]
[1769382250415,0.01155374,86552.0,86518.0,1.14076876]
[1769382250416,0.01155361,86553.0,86530.0,0.01155668]
[1769382250608,0.01155388,86551.0,86532.0,0.01155641]
[1769382250845,0.01155401,86550.0,86530.0,0.01155668]